fUST/lending_fUST_20250302
["ID","MTS","AMOUNT","RATE_DAILY","PERIOD"]
[355121961,1740922147483,-524.49578238,0.00020357,2]
[355121962,1740922155127,-791.95890962,0.00020357,2]
[355121963,1740922155148,-422.54425656,0.0002061,2]
[355121964,1740922155170,-166.66666666,0.00020826,2]
[355121967,1740922203925,186.99536788,0.00020208,2]
[355121968,1740922203948,222.1276833,0.00020208,2]
[355121969,1740922203970,216.61982196,0.00020208,2]
[355122009,1740922232610,-54.00019465,0.00020208,2]
[355122010,1740922232621,-3363.18075349,0.00020826,2]
[355122011,1740922232633,-300.0,0.00020926,2]
[355122012,1740922232645,-17226.17989146,0.00020927,2]
[355122013,1740922232655,-656.34428126,0.00021,5]
[355122021,1740922238277,-991.05017998,0.00021,5]
[355122022,1740922238289,-115.97737936,0.00021,5]
[355122023,1740922238300,-237.86656866,0.0002131,2]
[355122024,1740922238310,-154.9535601,0.00021533,2]
[355122025,1740922238321,-397.0,0.00021799,2]
[355122026,1740922238330,-339.2966758,0.00021815,2]
[355122027,1740922238341,-168.27,0.00021878,2]
[355122028,1740922238351,-168.27,0.00021878,2]
[355122029,1740922238360,-168.27,0.00021878,2]
[355122031,1740922238370,-168.27,0.00021878,2]
[355122033,1740922238380,-168.27,0.00021878,2]
[355122035,1740922238389,-606.6448234,0.00021887,2]
[355122037,1740922238399,-589.74640502,0.00021887,2]
[355122039,1740922238408,-228.30547305,0.00021887,2]
[355122040,1740922238419,-500.0,0.00021887,2]
[355122041,1740922238429,-422.85911459,0.00021888,2]
[355122170,1740922246267,-1572.55010812,0.00021788,2]
[355122171,1740922246280,-233.75203094,0.00021788,2]
[355122172,1740922246291,-27104.65640938,0.00021888,2]
[355122181,1740922639407,-2577.49361346,0.00019788,2]
[355122182,1740922639434,-300.0,0.0002095,2]
[355122183,1740922639461,-7122.50638654,0.00020951,2]
[355122184,1740922646110,-10000.0,0.00020951,2]
[355122216,1740923155137,-495.34,0.00016061,2]
[355122217,1740923155159,-215.51463573,0.00019788,2]
[355122218,1740923158086,-880.10798611,0.00019788,2]
[355122219,1740923214125,-154.09667678,0.00019788,2]
[355122221,1740923235133,-219.98077892,0.00019788,2]
[355122222,1740923238081,-1367.60026744,0.00019788,2]
[355122223,1740923238102,-849.633705,0.00020552,2]
[355122224,1740923238123,-21.17957337,0.00020678,2]
[355122225,1740923247081,-214.78309643,0.00020678,2]
[355122226,1740923247103,-399.3800469,0.00020835,2]
[355122227,1740923247127,-300.0,0.00020838,2]
[355122228,1740923247150,-3824.49508444,0.00020839,2]
[355122229,1740923249095,-358.398662,0.00020839,2]
[355122233,1740923348142,-2236.20378837,0.000189,2]
[355122234,1740923363130,-5817.10625356,0.00020839,2]
[355122235,1740923411807,114.03262225,0.00020856,2]
[355122254,1740923433282,-14246.32654244,0.00020856,2]
[355122264,1740923438440,-1424.93790473,0.00020856,2]
[355122338,1740923446570,-5900.0,0.00020856,2]
[355122344,1740923446690,-3214.70293058,0.00020856,2]
[355122346,1740923446701,-226.66090133,0.00021772,2]
[355122348,1740923446711,-500.0,0.00021773,2]
[355122350,1740923446720,-325.71786742,0.00021773,2]
[355122352,1740923446730,-500.0,0.00021773,2]
[355122353,1740923446740,-451.22771256,0.00021773,2]
[355122354,1740923446749,-500.0,0.00021773,2]
[355122355,1740923446759,-500.0,0.00021773,2]
[355122356,1740923446769,-500.0,0.00021773,2]
[355122357,1740923446779,-151.46662263,0.00021773,2]
[355122358,1740923446789,-65.31174503,0.00021773,2]
[355122360,1740923714859,3488.51,0.00016021,2]
[355122366,1740924334138,-1667.34843713,0.000189,2]
[355122367,1740924334163,-304.8299594,0.00020426,2]
[355122369,1740924434087,-119.9868936,0.00020426,2]
[355122370,1740924434123,-103.85446098,0.00020551,2]
[355122371,1740924436110,-1742.13223618,0.00020551,2]
[355122372,1740924445083,-34.94956044,0.00020551,2]
[355122373,1740924445105,-2604.330721,0.00020766,2]
[355122374,1740924445127,-827.8611916,0.00020786,2]
[355122375,1740924445150,-250.0,0.00020805,2]
[355122376,1740924445171,-117.39440352,0.00021533,2]
[355122377,1740924445199,-37.55915648,0.00021533,2]
[355122378,1740924445220,-214.677448,0.00021667,2]
[355122379,1740924446111,-222.11476628,0.00021667,2]
[355122381,1740924449091,-151.32038255,0.000199,2]
[355122382,1740924449113,-298.1418079,0.00021667,2]
[355122396,1740924546107,-1111.56562475,0.000189,2]
[355122397,1740924546131,-300.0,0.00020765,2]
[355122398,1740924546158,-677.60128131,0.00020766,2]
[355122399,1740924546180,-390.47762156,0.00020766,2]
[355122400,1740924546204,-677.60128131,0.00020766,2]
[355122401,1740924546226,-677.60128131,0.00020766,2]
[355122402,1740924546251,-677.60128131,0.00020766,2]
[355122403,1740924546274,-677.60128131,0.00020766,2]
[355122404,1740924546297,-677.60128131,0.00020766,2]
[355122405,1740924546319,-677.60128131,0.00020766,2]
[355122406,1740924546342,-677.60128131,0.00020766,2]
[355122407,1740924546365,-677.60128131,0.00020766,2]
[355122408,1740924546386,-677.60128131,0.00020766,2]
[355122409,1740924546410,-677.60128131,0.00020766,2]
[355122410,1740924546432,-677.60128131,0.00020766,2]
[355122411,1740924546454,-677.60128131,0.00020766,2]
[355122412,1740924546476,-677.60128131,0.00020766,2]
[355122413,1740924546499,-677.60128131,0.00020766,2]
[355122414,1740924546522,-677.60128131,0.00020766,2]
[355122415,1740924546544,-677.60128131,0.00020766,2]
[355122416,1740924546568,-677.60128131,0.00020766,2]
[355122417,1740924546591,-677.60128131,0.00020766,2]
[355122418,1740924546615,-677.60128131,0.00020766,2]
[355122419,1740924546638,-677.60128131,0.00020766,2]
[355122420,1740924546662,-677.60128131,0.00020766,2]
[355122421,1740924546686,-677.60128131,0.00020766,2]
[355122422,1740924546710,-677.60128131,0.00020766,2]
[355122423,1740924546734,-677.60128131,0.00020766,2]
[355122424,1740924546758,-677.60128131,0.00020766,2]
[355122425,1740924546781,-677.60128131,0.00020766,2]
[355122426,1740924546804,-677.60128131,0.00020766,2]
[355122427,1740924546826,-677.60128131,0.00020766,2]
[355122428,1740924546849,-677.60128131,0.00020766,2]
[355122429,1740924546872,-677.60128131,0.00020766,2]
[355122430,1740924546896,-677.60128131,0.00020766,2]
[355122431,1740924546920,-677.60128131,0.00020766,2]
[355122432,1740924546944,-677.60128131,0.00020766,2]
[355122433,1740924546967,-677.60128131,0.00020766,2]
[355122434,1740924546991,-677.60128131,0.00020766,2]
[355122435,1740924547020,-677.60128131,0.00020766,2]
[355122436,1740924547045,-677.60128131,0.00020766,2]
[355122437,1740924547071,-677.60128131,0.00020766,2]
[355122438,1740924547097,-677.60128131,0.00020766,2]
[355122439,1740924547121,-677.60128131,0.00020766,2]
[355122440,1740924547146,-677.60128131,0.00020766,2]
[355122441,1740924547172,-677.60128131,0.00020766,2]
[355122442,1740924547198,-677.60128131,0.00020766,2]
[355122443,1740924547222,-5694.85914082,0.00020766,2]
[355122444,1740924547245,-5694.85914082,0.00020766,2]
[355122445,1740924547269,-5694.85914082,0.00020766,2]
[355122446,1740924547293,-5694.85914082,0.00020766,2]
[355122447,1740924547317,-5694.85914082,0.00020766,2]
[355122448,1740924547340,-2228.99576958,0.00020766,2]
[355122485,1740924632889,-153.51,0.00020756,2]
[355122486,1740924632900,-153.51,0.00020756,2]
[355122487,1740924632910,-153.51,0.00020756,2]
[355122488,1740924632920,-300.0,0.00020765,2]
[355122489,1740924632930,-3465.86337124,0.00020766,2]
[355122490,1740924632939,-5694.85914082,0.00020766,2]
[355122491,1740924632950,-5694.85914082,0.00020766,2]
[355122492,1740924632960,-5694.85914082,0.00020766,2]
[355122493,1740924632970,-5694.85914082,0.00020766,2]
[355122494,1740924632979,-5694.85914082,0.00020766,2]
[355122495,1740924632989,-5694.85914082,0.00020766,2]
[355122496,1740924632999,-5694.85914082,0.00020766,2]
[355122497,1740924633008,-5694.85914082,0.00020766,2]
[355122498,1740924633018,-5694.85914082,0.00020766,2]
[355122499,1740924633028,-5694.85914082,0.00020766,2]
[355122500,1740924633038,-5694.85914082,0.00020766,2]
[355122501,1740924633048,-5694.85914082,0.00020766,2]
[355122502,1740924633058,-5694.85914082,0.00020766,2]
[355122503,1740924633068,-5694.85914082,0.00020766,2]
[355122504,1740924633078,-2735.54529944,0.00020766,2]
[355122505,1740924633104,-2959.31384138,0.00020766,2]
[355122506,1740924633114,-5694.85914082,0.00020766,2]
[355122507,1740924633124,-5694.85914082,0.00020766,2]
[355122508,1740924633134,-5694.85914082,0.00020766,2]
[355122509,1740924633144,-5694.85914082,0.00020766,2]
[355122510,1740924633154,-5694.85914082,0.00020766,2]
[355122511,1740924633163,-5694.85914082,0.00020766,2]
[355122513,1740924633174,-5694.85914082,0.00020766,2]
[355122515,1740924633183,-5694.85914082,0.00020766,2]
[355122517,1740924633193,-3539.87267049,0.00020766,2]
[355122520,1740924633207,-3539.87267049,0.00020766,2]
[355122522,1740924633218,-3539.87267049,0.00020766,2]
[355122524,1740924633228,-3539.87267049,0.00020766,2]
[355122526,1740924633239,-3539.87267049,0.00020766,2]
[355122528,1740924633249,-3539.87267049,0.00020766,2]
[355122530,1740924633263,-3539.87267049,0.00020766,2]
[355122532,1740924633273,-3539.87267049,0.00020766,2]
[355122533,1740924633285,-3539.87267049,0.00020766,2]
[355122534,1740924633295,-3539.87267049,0.00020766,2]
[355122535,1740924633304,-3539.87267049,0.00020766,2]
[355122536,1740924633314,-3539.87267049,0.00020766,2]
[355122537,1740924633324,-3539.87267049,0.00020766,2]
[355122538,1740924633334,-3539.87267049,0.00020766,2]
[355122539,1740924633345,-3539.87267049,0.00020766,2]
[355122540,1740924633354,-3539.87267049,0.00020766,2]
[355122541,1740924633364,-3539.87267049,0.00020766,2]
[355122542,1740924633373,-3539.87267049,0.00020766,2]
[355122543,1740924633383,-3539.87267049,0.00020766,2]
[355122544,1740924633393,-3539.87267049,0.00020766,2]
[355122545,1740924633403,-3539.87267049,0.00020766,2]
[355122546,1740924633413,-500.0,0.00020766,2]
[355122547,1740924633422,-500.0,0.00020766,2]
[355122548,1740924633433,-500.0,0.00020766,2]
[355122549,1740924633443,-500.0,0.00020766,2]
[355122550,1740924633453,-500.0,0.00020766,2]
[355122551,1740924633463,-500.0,0.00020766,2]
[355122552,1740924633473,-539.87267043,0.00020766,2]
[355122553,1740924633483,-24900.0,0.00020767,2]
[355122554,1740924633493,-1200.0,0.00021,2]
[355122555,1740924633505,-154.95356,0.00021478,2]
[355122556,1740924633515,-552.0,0.000217,2]
[355122557,1740924633525,-843.12475463,0.00021758,2]
[355122558,1740924633536,-424.65137638,0.00021763,2]
[355122559,1740924633545,-500.0,0.00021773,2]
[355122560,1740924633555,-500.0,0.00021773,2]
[355122561,1740924633565,-500.0,0.00021773,2]
[355122562,1740924633575,-623.67128849,0.00021773,2]
[355122563,1740924633586,-500.0,0.00021773,2]
[355122564,1740924633596,-500.0,0.00021773,2]
[355122565,1740924633606,-500.0,0.00021773,2]
[355122566,1740924633616,-500.0,0.00021773,2]
[355122567,1740924633626,-500.0,0.00021773,2]
[355122568,1740924633636,-500.0,0.00021773,2]
[355122569,1740924633647,-151.0,0.00021775,2]
[355122570,1740924633657,-500.0,0.00021775,2]
[355122571,1740924633667,-550.0,0.00021775,2]
[355122572,1740924633678,-605.0,0.00021775,2]
[355122573,1740924633688,-665.5,0.00021775,2]
[355122574,1740924633698,-732.05,0.00021775,2]
[355122575,1740924633708,-805.255,0.00021775,2]
[355122576,1740924633719,-885.7805,0.00021775,2]
[355122577,1740924633729,-1000.0,0.00021775,2]
[355122578,1740924633739,-154.0,0.00021775,2]
[355122579,1740924633749,-198763.33827909,0.00021788,2]
[355122636,1740924646907,-153.51,0.00020656,2]
[355122637,1740924646917,-153.51,0.00020656,2]
[355122638,1740924646927,-153.51,0.00020656,2]
[355122639,1740924646937,-153.51,0.00020656,2]
[355122640,1740924646947,-153.51,0.00020656,2]
[355122641,1740924646957,-153.51,0.00020656,2]
[355122642,1740924646967,-153.51,0.00020656,2]
[355122643,1740924646977,-153.51,0.00020656,2]
[355122644,1740924646988,-153.51,0.00020656,2]
[355122645,1740924646998,-153.51,0.00020656,2]
[355122646,1740924647008,-153.51,0.00020656,2]
[355122647,1740924647018,-153.51,0.00020656,2]
[355122648,1740924647027,-3781.15158671,0.00020666,2]
[355122649,1740924647036,-2694.82841319,0.00020666,2]
[355122650,1740924647048,-7858.68896956,0.00020666,2]
[355122686,1740925545108,-175.37728822,0.00018314,2]
[355122687,1740925545144,-1573.73896797,0.00019588,2]
[355122688,1740925550091,-645.09575351,0.00019588,2]
[355122691,1740925618120,-168.17732719,0.00019588,2]
[355122693,1740925637078,-380.33397421,0.00019588,2]
[355122696,1740925641100,-231.99899872,0.00019588,2]
[355122697,1740925641135,-1425.79325436,0.00019588,2]
[355122699,1740925642076,-172.6811036,0.00019588,2]
[355122700,1740925645085,-99.0090405,0.00019588,2]
[355122701,1740925645108,-250.0,0.00019625,2]
[355122702,1740925645130,-212.408426,0.00019646,2]
[355122703,1740925645153,-906.85613203,0.00019688,2]
[355122704,1740925645176,-210.51250746,0.00020556,2]
[355122705,1740925645200,-3308.50763838,0.00020573,2]
[355122706,1740925645223,-300.0,0.00020653,2]
[355122707,1740925645247,-151.0,0.00020654,2]
[355122708,1740925645269,-500.0,0.00020654,2]
[355122709,1740925645291,-550.0,0.00020654,2]
[355122710,1740925645312,-605.0,0.00020654,2]
[355122711,1740925645336,-1000.0,0.00020654,2]
[355122712,1740925645356,-391.152955,0.00020654,2]
[355122713,1740925645378,-224.88,0.00020656,3]
[355122714,1740925645401,-674.65,0.00020656,3]
[355122715,1740925645423,-297.25596346,0.00020658,2]
[355122716,1740925645444,-408.58405207,0.00020658,2]
[355122717,1740925645467,-500.0,0.00020658,2]
[355122718,1740925645490,-500.0,0.00020658,2]
[355122719,1740925645516,-500.0,0.00020658,2]
[355122720,1740925645542,-500.0,0.00020658,2]
[355122721,1740925645565,-500.0,0.00020658,2]
[355122722,1740925645595,-500.0,0.00020658,2]
[355122723,1740925645623,-500.0,0.00020658,2]
[355122724,1740925645649,-500.0,0.00020658,2]
[355122725,1740925645676,-500.0,0.00020658,2]
[355122726,1740925645703,-500.0,0.00020658,2]
[355122727,1740925645735,-500.0,0.00020658,2]
[355122728,1740925645763,-500.0,0.00020658,2]
[355122729,1740925645790,-500.0,0.00020658,2]
[355122730,1740925645816,-500.0,0.00020658,2]
[355122731,1740925645844,-500.0,0.00020658,2]
[355122732,1740925645872,-500.0,0.00020658,2]
[355122733,1740925645899,-500.0,0.00020658,2]
[355122734,1740925645928,-500.0,0.00020658,2]
[355122735,1740925645955,-500.0,0.00020658,2]
[355122736,1740925645982,-180.677382,0.00020658,2]
[355122737,1740925647086,-241.50503923,0.00020658,2]
[355122738,1740925652130,-77.81757877,0.00020658,2]
[355122739,1740925652159,-322.06197413,0.00020658,2]
[355122745,1740925745079,-604.57075469,0.000189,2]
[355122746,1740925745102,-659.92136157,0.00019,2]
[355122747,1740925745124,-197.92960751,0.00019488,2]
[355122748,1740925745146,-300.0,0.00019646,2]
[355122749,1740925745167,-7632.76522666,0.00019647,2]
[355122750,1740925752066,-2367.23477334,0.00019647,2]
[355122751,1740925752089,-13420.03907559,0.00019667,2]
[355122752,1740925752119,-11479.96092441,0.00019667,2]
[355122753,1740925760098,-422.54425656,0.0002061,2]
[355122754,1740925760120,-500.0,0.00020657,2]
[355122755,1740925760146,-500.0,0.00020657,2]
[355122756,1740925760187,-500.0,0.00020657,2]
[355122757,1740925760216,-500.0,0.00020657,2]
[355122758,1740925760241,-500.0,0.00020657,2]
[355122759,1740925760266,-500.0,0.00020657,2]
[355122760,1740925760291,-500.0,0.00020657,2]
[355122761,1740925760315,-500.0,0.00020657,2]
[355122762,1740925760339,-500.0,0.00020657,2]
[355122763,1740925760364,-500.0,0.00020657,2]
[355122764,1740925760388,-500.0,0.00020657,2]
[355122765,1740925760414,-500.0,0.00020657,2]
[355122766,1740925760437,-500.0,0.00020657,2]
[355122767,1740925760462,-401.35042839,0.00020657,2]
[355122768,1740925760486,-500.0,0.00020657,2]
[355122769,1740925760510,-500.0,0.00020657,2]
[355122770,1740925760534,-500.0,0.00020657,2]
[355122771,1740925760558,-500.0,0.00020657,2]
[355122772,1740925760582,-500.0,0.00020657,2]
[355122773,1740925760605,-500.0,0.00020657,2]
[355122774,1740925760633,-500.0,0.00020657,2]
[355122775,1740925760657,-500.0,0.00020657,2]
[355122776,1740925760684,-500.0,0.00020657,2]
[355122777,1740925760708,-500.0,0.00020657,2]
[355122778,1740925760733,-500.0,0.00020657,2]
[355122779,1740925760763,-500.0,0.00020657,2]
[355122780,1740925760787,-1008.84371615,0.00020657,2]
[355122781,1740925760811,-1008.84371615,0.00020657,2]
[355122782,1740925760835,-1008.84371615,0.00020657,2]
[355122783,1740925760860,-1008.84371615,0.00020657,2]
[355122784,1740925760884,-1008.84371615,0.00020657,2]
[355122785,1740925760908,-1008.84371615,0.00020657,2]
[355122786,1740925760932,-1008.84371615,0.00020657,2]
[355122787,1740925760963,-1008.84371615,0.00020657,2]
[355122788,1740925760987,-1008.84371615,0.00020657,2]
[355122789,1740925761011,-1008.84371615,0.00020657,2]
[355122790,1740925761036,-1008.84371615,0.00020657,2]
[355122791,1740925761061,-1008.84371615,0.00020657,2]
[355122792,1740925761086,-1008.84371615,0.00020657,2]
[355122793,1740925761110,-1008.84371615,0.00020657,2]
[355122794,1740925761135,-1008.84371615,0.00020657,2]
[355122795,1740925761160,-1008.84371615,0.00020657,2]
[355122796,1740925761184,-1008.84371615,0.00020657,2]
[355122797,1740925761209,-1008.84371615,0.00020657,2]
[355122798,1740925761235,-1008.84371615,0.00020657,2]
[355122799,1740925761260,-1008.84371615,0.00020657,2]
[355122800,1740925761284,-1008.84371615,0.00020657,2]
[355122801,1740925761309,-588.36081625,0.00020657,2]
[355122803,1740925792546,185.1721689,0.00019701,2]
[355122804,1740925792567,17.9691521,0.00019701,2]
[355122843,1740925832324,-625.74287315,0.00020557,2]
[355122844,1740925832334,-151.0,0.00020654,2]
[355122845,1740925832345,-449.76,0.00020656,3]
[355122846,1740925832355,-300.0,0.00020656,2]
[355122847,1740925832365,-167.22,0.00020665,2]
[355122848,1740925832375,-500.0,0.00020665,2]
[355122849,1740925832385,-208.07917442,0.00020665,2]
[355122850,1740925832395,-1875.60142671,0.00020666,2]
[355122851,1740925832407,-4124.88448146,0.00020666,2]
[355122852,1740925832423,-21027.36265533,0.00020666,2]
[355122853,1740925832434,-2311.62629011,0.00020666,2]
[355122854,1740925832446,-805.95870888,0.00020666,2]
[355122855,1740925832461,-181301.04905476,0.00020666,2]
[355122856,1740925832471,-308.81067579,0.00020673,2]
[355122857,1740925832481,-500.0,0.00020673,2]
[355122858,1740925832492,-592.75987409,0.00020673,2]
[355122859,1740925832501,-281.0,0.00020673,2]
[355122860,1740925832511,-509.71697351,0.00020673,2]
[355122861,1740925832521,-201.08354925,0.00020673,2]
[355122862,1740925832531,-500.0,0.00020673,2]
[355122863,1740925832540,-500.0,0.00020673,2]
[355122864,1740925832550,-151.0,0.000208,4]
[355122865,1740925832560,-151.0,0.000209,4]
[355122866,1740925832570,-501.84877328,0.00020939,2]
[355122867,1740925832580,-151.0,0.000211,3]
[355122868,1740925832591,-151.0,0.000212,4]
[355122869,1740925832600,-298.829,0.00021202,2]
[355122870,1740925832610,-151.0,0.000213,4]
[355122871,1740925832621,-2000.0,0.000215,2]
[355122872,1740925832631,-156.70429,0.000215,2]
[355122873,1740925832643,-155.0127996,0.000215,2]
[355122874,1740925832654,-151.0,0.000215,3]
[355122875,1740925832665,-151.0,0.000216,3]
[355122876,1740925832676,-20000.000001,0.00021681,2]
[355122877,1740925832688,-151.0,0.000217,3]
[355122878,1740925832698,-2840.07132896,0.00021817,2]
[355122879,1740925832708,-150.0,0.00021845,2]
[355122880,1740925832719,-150.0,0.00021845,2]
[355122881,1740925832730,-3000.0,0.00021873,2]
[355122882,1740925832741,-167.43281642,0.00021887,2]
[355122883,1740925832750,-162.85000331,0.0002189,2]
[355122884,1740925832761,-151.0,0.000219,3]
[355122885,1740925832771,-1000.0,0.00021915,2]
[355122886,1740925832780,-500.0,0.00021917,2]
[355122887,1740925832790,-500.0,0.00021917,2]
[355122888,1740925832799,-500.0,0.00021917,2]
[355122889,1740925832810,-500.0,0.00021917,2]
[355122890,1740925832820,-500.0,0.00021917,2]
[355122891,1740925832829,-500.0,0.00021917,2]
[355122892,1740925832838,-500.0,0.00021917,2]
[355122893,1740925832848,-500.0,0.00021917,2]
[355122894,1740925832857,-500.0,0.00021917,2]
[355122895,1740925832866,-500.0,0.00021917,2]
[355122896,1740925832876,-511.2011299,0.00021917,2]
[355122897,1740925832886,-500.0,0.00021917,2]
[355122898,1740925832896,-500.0,0.00021917,2]
[355122899,1740925832905,-500.0,0.00021917,2]
[355122900,1740925832915,-500.0,0.00021917,2]
[355122901,1740925832926,-500.0,0.00021917,2]
[355122902,1740925832935,-500.0,0.00021917,2]
[355122903,1740925832944,-500.0,0.00021917,2]
[355122904,1740925832955,-500.0,0.00021917,2]
[355122905,1740925832964,-500.0,0.00021917,2]
[355122906,1740925832973,-500.0,0.00021917,2]
[355122907,1740925832983,-500.0,0.00021917,2]
[355122908,1740925832993,-500.0,0.00021917,2]
[355122909,1740925833003,-500.0,0.00021917,2]
[355122910,1740925833013,-500.0,0.00021917,2]
[355122911,1740925833023,-503.57156651,0.00021917,2]
[355122912,1740925833034,-500.0,0.00021917,2]
[355122913,1740925833043,-500.0,0.00021917,2]
[355122914,1740925833053,-500.0,0.00021917,2]
[355122915,1740925833064,-500.0,0.00021917,2]
[355122916,1740925833074,-500.0,0.00021917,2]
[355122917,1740925833084,-500.0,0.00021917,2]
[355122918,1740925833095,-500.0,0.00021917,2]
[355122919,1740925833105,-500.0,0.00021917,2]
[355122920,1740925833116,-500.0,0.00021917,2]
[355122921,1740925833126,-500.0,0.00021917,2]
[355122922,1740925833135,-500.0,0.00021917,2]
[355122923,1740925833145,-502.70390321,0.00021917,2]
[355122924,1740925833154,-500.0,0.00021917,2]
[355122925,1740925833165,-500.0,0.00021917,2]
[355122926,1740925833175,-500.0,0.00021917,2]
[355122927,1740925833185,-500.0,0.00021917,2]
[355122928,1740925833194,-598.20576571,0.00021917,2]
[355122929,1740925833204,-174.848102,0.00021917,2]
[355122930,1740925833215,-174.848102,0.00021917,2]
[355122931,1740925833225,-174.848102,0.00021917,2]
[355122932,1740925833235,-174.848102,0.00021917,2]
[355122933,1740925833248,-174.848102,0.00021917,2]
[355122934,1740925833276,-174.848102,0.00021917,2]
[355122935,1740925833307,-174.848102,0.00021917,2]
[355122936,1740925833337,-174.848102,0.00021917,2]
[355122937,1740925833369,-500.0,0.00021917,2]
[355122938,1740925833402,-500.0,0.00021917,2]
[355122939,1740925833429,-500.0,0.00021917,2]
[355122940,1740925833451,-500.0,0.00021917,2]
[355122941,1740925833477,-500.0,0.00021917,2]
[355122942,1740925833501,-500.0,0.00021917,2]
[355122943,1740925833531,-500.0,0.00021917,2]
[355122944,1740925833541,-500.0,0.00021917,2]
[355122945,1740925833551,-500.0,0.00021917,2]
[355122946,1740925833561,-500.0,0.00021917,2]
[355122947,1740925833571,-500.0,0.00021917,2]
[355122948,1740925833581,-618.06,0.00021917,2]
[355122949,1740925833591,-500.0,0.00021917,2]
[355122950,1740925833600,-503.01725698,0.00021917,2]
[355122951,1740925833610,-509.55,0.00021917,2]
[355122952,1740925833620,-500.0,0.00021917,2]
[355122953,1740925833630,-500.0,0.00021917,2]
[355122954,1740925833643,-500.0,0.00021917,2]
[355122955,1740925833654,-500.0,0.00021917,2]
[355122956,1740925833664,-565.76,0.00021917,2]
[355122957,1740925833673,-500.0,0.00021917,2]
[355122958,1740925833683,-500.0,0.00021917,2]
[355122959,1740925833693,-500.0,0.00021917,2]
[355122960,1740925833703,-522.97449634,0.00021917,2]
[355122961,1740925833714,-500.0,0.00021917,2]
[355122962,1740925833724,-233.18462087,0.00021917,2]
[355122963,1740925833734,-500.0,0.00021917,2]
[355122964,1740925833743,-500.0,0.00021917,2]
[355122965,1740925833753,-500.0,0.00021917,2]
[355122966,1740925833763,-500.0,0.00021917,2]
[355122967,1740925833773,-500.0,0.00021917,2]
[355122968,1740925833783,-522.04425996,0.00021917,2]
[355122969,1740925833793,-500.0,0.00021917,2]
[355122970,1740925833803,-500.0,0.00021917,2]
[355122971,1740925833813,-500.0,0.00021917,2]
[355122972,1740925833823,-500.0,0.00021917,2]
[355122973,1740925833833,-500.0,0.00021917,2]
[355122974,1740925833843,-500.0,0.00021917,2]
[355122975,1740925833853,-502.3882834,0.00021917,2]
[355122976,1740925833863,-500.0,0.00021917,2]
[355122977,1740925833872,-500.0,0.00021917,2]
[355122978,1740925833882,-500.0,0.00021917,2]
[355122979,1740925833891,-500.0,0.00021917,2]
[355122980,1740925833902,-500.0,0.00021917,2]
[355122981,1740925833912,-504.2044642,0.00021917,2]
[355122982,1740925833922,-500.0,0.00021917,2]
[355122983,1740925833932,-500.0,0.00021917,2]
[355122984,1740925833942,-500.0,0.00021917,2]
[355122985,1740925833952,-599.93081798,0.00021917,2]
[355122986,1740925833963,-500.0,0.00021917,2]
[355122987,1740925833974,-500.0,0.00021917,2]
[355122988,1740925833984,-500.0,0.00021917,2]
[355122989,1740925833995,-500.0,0.00021917,2]
[355122990,1740925834004,-500.0,0.00021917,2]
[355122991,1740925834015,-501.52894801,0.00021917,2]
[355122992,1740925834026,-500.0,0.00021917,2]
[355122993,1740925834036,-500.0,0.00021917,2]
[355122994,1740925834047,-625.19,0.00021917,2]
[355122995,1740925834057,-441.44664418,0.00021917,2]
[355122996,1740925834067,-197.48202412,0.00021917,2]
[355122997,1740925834077,-500.0,0.00021917,2]
[355122998,1740925834087,-500.0,0.00021917,2]
[355122999,1740925834097,-500.0,0.00021917,2]
[355123000,1740925834108,-500.0,0.00021917,2]
[355123001,1740925834118,-500.0,0.00021917,2]
[355123002,1740925834128,-500.0,0.00021917,2]